[Event "FIDE U16 Olympiad_boards_1-80"]
[Site "Eindhoven, Netherlands"]
[Date "2023.08.14"]
[Round "3.36"]
[White "Mickunaite, Agne"]
[Black "Deak-Sala, Emilia"]
[Result "0-1"]
[TimeControl "2700+10"]
[WhiteElo "1681"]
[BlackElo "1910"]

1. c4 {[%clk 00:45:17]} {[%emt 00:00:02]} e5 {[%clk 00:45:16]} {[%emt
00:00:05]} 2. Nc3 {[%clk 00:45:20]} {[%emt 00:00:07]} Nc6 {[%clk 00:45:24]}
{[%emt 00:00:01]} 3. g3 {[%clk 00:45:28]} {[%emt 00:00:03]} f5 {[%clk
00:45:33]} 4. e3 {[%clk 00:45:36]} {[%emt 00:00:02]} Nf6 {[%clk 00:45:42]}
{[%emt 00:00:01]} 5. Bg2 {[%clk 00:45:44]} {[%emt 00:00:02]} e4 {[%clk
00:45:51]} {[%emt 00:00:02]} 6. d4 {[%clk 00:45:33]} {[%emt 00:00:20]} d5
{[%clk 00:45:57]} {[%emt 00:00:03]} 7. cxd5 {[%clk 00:45:18]} {[%emt 00:00:25]}
Nb4 {[%clk 00:45:26]} {[%emt 00:00:41]} 8. Bf1 {[%clk 00:43:16]} {[%emt
00:02:13]} Nbxd5 {[%emt 00:02:35]} 9. Nge2 {[%clk 00:42:28]} {[%emt 00:00:56]}
Be7 {[%clk 00:43:04]} {[%emt 00:00:09]} 10. a3 {[%clk 00:42:31]} {[%emt
00:00:06]} O-O {[%clk 00:42:26]} {[%emt 00:00:49]} 11. Bg2 {[%clk 00:42:39]}
{[%emt 00:00:02]} Kh8 {[%clk 00:41:49]} {[%emt 00:00:47]} 12. Bd2 {[%clk
00:40:23]} {[%emt 00:02:25]} c6 {[%clk 00:41:09]} {[%emt 00:00:51]} 13. Rc1
{[%clk 00:40:10]} {[%emt 00:00:22]} Qe8 {[%clk 00:39:05]} {[%emt 00:02:14]} 14.
Nxd5 {[%clk 00:39:04]} {[%emt 00:01:16]} Nxd5 {[%clk 00:39:07]} {[%emt
00:00:09]} 15. Nc3 {[%clk 00:38:39]} {[%emt 00:00:35]} Nf6 {[%clk 00:35:25]}
{[%emt 00:03:52]} 16. h4 {[%clk 00:35:36]} {[%emt 00:03:12]} Be6 {[%clk
00:32:43]} {[%emt 00:02:52]} 17. Ne2 {[%clk 00:34:00]} {[%emt 00:01:46]} Nh5
{[%clk 00:32:02]} {[%emt 00:00:52]} 18. Qc2 {[%clk 00:23:50]} {[%emt 00:10:19]}
Qf7 {[%clk 00:30:47]} {[%emt 00:01:25]} 19. Nf4 {[%clk 00:19:44]} {[%emt
00:04:17]} Nxf4 {[%clk 00:30:24]} {[%emt 00:00:33]} 20. exf4 {[%clk 00:19:49]}
{[%emt 00:00:05]} Rfd8 {[%clk 00:29:38]} {[%emt 00:00:55]} 21. Be3 {[%clk
00:19:01]} {[%emt 00:00:59]} Bf6 {[%clk 00:29:39]} {[%emt 00:00:09]} 22. O-O
{[%clk 00:16:40]} {[%emt 00:02:30]} Bxd4 {[%clk 00:28:24]} {[%emt 00:01:26]} 23.
Bxd4 {[%clk 00:16:36]} {[%emt 00:00:14]} Rxd4 {[%clk 00:28:32]} {[%emt
00:00:01]} 24. Rfe1 {[%clk 00:12:15]} {[%emt 00:04:31]} Rad8 {[%clk 00:24:19]}
{[%emt 00:04:24]} 25. Qc5 {[%clk 00:12:09]} {[%emt 00:00:15]} a6 {[%clk
00:23:56]} {[%emt 00:00:34]} 26. Qb6 {[%clk 00:12:16]} {[%emt 00:00:02]} R8d7
{[%clk 00:21:56]} {[%emt 00:02:11]} 27. b4 {[%clk 00:11:28]} {[%emt 00:00:57]}
Qe7 {[%clk 00:20:15]} {[%emt 00:01:52]} 28. Rb1 {[%clk 00:11:37]} {[%emt
00:00:01]} Qd8 {[%clk 00:17:45]} {[%emt 00:02:40]} 29. Qa7 {[%clk 00:10:46]}
{[%emt 00:01:01]} Rd3 {[%clk 00:15:48]} {[%emt 00:02:07]} 30. a4 {[%clk
00:10:07]} {[%emt 00:00:48]} Bc4 {[%clk 00:15:12]} {[%emt 00:00:47]} 31. Qc5
{[%clk 00:09:44]} {[%emt 00:00:32]} Be6 {[%clk 00:15:13]} {[%emt 00:00:09]} 32.
Qa7 {[%clk 00:09:53]} {[%emt 00:00:01]} Ra3 {[%clk 00:13:15]} {[%emt 00:02:08]}
33. Ra1 {[%clk 00:10:00]} {[%emt 00:00:04]} Rxa1 {[%clk 00:09:34]} {[%emt
00:03:51]} 34. Rxa1 {[%clk 00:10:08]} {[%emt 00:00:01]} h6 {[%clk 00:08:29]}
{[%emt 00:01:16]} 35. Rb1 {[%clk 00:09:46]} {[%emt 00:00:32]} Bc4 {[%clk
00:06:20]} {[%emt 00:02:19]} 36. Bh3 {[%clk 00:08:35]} {[%emt 00:01:21]} b6
{[%clk 00:06:13]} {[%emt 00:00:18]} 0-1

[Event "FIDE U16 Olympiad_boards_1-80"]
[Site "Eindhoven, Netherlands"]
[Date "2023.08.14"]
[Round "3.37"]
[White "Ramaj, Ergit"]
[Black "Dubnevych, Maksym"]
[Result "0-1"]
[TimeControl "2700+10"]
[WhiteElo "2012"]
[BlackElo "2196"]

1. e4 {[%clk 00:45:17]} {[%emt 00:00:02]} c5 {[%clk 00:45:19]} {[%emt
00:00:01]} 2. Nf3 {[%clk 00:45:25]} {[%emt 00:00:02]} Nc6 {[%clk 00:45:28]} 3.
Bb5 {[%clk 00:45:29]} {[%emt 00:00:07]} g6 {[%clk 00:45:36]} {[%emt 00:00:01]}
4. Bxc6 {[%clk 00:45:33]} {[%emt 00:00:07]} bxc6 {[%clk 00:45:22]} {[%emt
00:00:24]} 5. O-O {[%clk 00:44:22]} {[%emt 00:01:21]} Bg7 {[%clk 00:44:54]}
{[%emt 00:00:37]} 6. Re1 {[%clk 00:44:11]} {[%emt 00:00:21]} e5 {[%clk
00:44:02]} {[%emt 00:01:03]} 7. c3 {[%clk 00:39:19]} {[%emt 00:05:02]} Ne7
{[%clk 00:42:53]} {[%emt 00:01:18]} 8. d4 {[%clk 00:37:49]} {[%emt 00:01:41]}
cxd4 {[%clk 00:42:58]} {[%emt 00:00:06]} 9. cxd4 {[%clk 00:37:55]} {[%emt
00:00:03]} exd4 {[%clk 00:42:58]} {[%emt 00:00:09]} 10. Nxd4 {[%clk 00:37:44]}
{[%emt 00:00:21]} O-O {[%clk 00:41:44]} {[%emt 00:01:24]} 11. Nc3 {[%clk
00:36:58]} {[%emt 00:00:56]} Bb7 {[%clk 00:35:48]} {[%emt 00:06:07]} 12. Nb3
{[%clk 00:33:06]} {[%emt 00:04:02]} d5 {[%clk 00:31:07]} {[%emt 00:04:52]} 13.
Be3 {[%clk 00:29:22]} {[%emt 00:03:53]} Re8 {[%clk 00:22:54]} {[%emt 00:08:22]}
14. Bd4 {[%clk 00:28:05]} {[%emt 00:01:28]} f6 {[%clk 00:21:00]} {[%emt
00:02:04]} 15. Nc5 {[%clk 00:26:06]} {[%emt 00:02:08]} Bc8 {[%clk 00:20:37]}
{[%emt 00:00:33]} 16. exd5 {[%clk 00:26:10]} {[%emt 00:00:06]} Nxd5 {[%clk
00:19:45]} {[%emt 00:01:03]} 17. Rxe8+ {[%clk 00:26:03]} Qxe8 {[%clk 00:19:54]}
{[%emt 00:00:18]} 18. Nxd5 {[%clk 00:26:02]} {[%emt 00:00:11]} cxd5 {[%clk
00:20:02]} {[%emt 00:00:01]} 19. Qf3 {[%clk 00:24:59]} {[%emt 00:01:13]} Qc6
{[%clk 00:18:56]} {[%emt 00:01:16]} 20. Re1 {[%clk 00:23:39]} {[%emt 00:01:30]}
a5 {[%clk 00:13:48]} {[%emt 00:05:19]} 21. g4 {[%clk 00:18:09]} {[%emt
00:05:39]} Rb8 {[%clk 00:11:34]} {[%emt 00:02:24]} 22. a3 {[%clk 00:14:32]}
{[%emt 00:03:48]} g5 {[%clk 00:09:37]} {[%emt 00:02:07]} 23. h3 {[%clk
00:13:41]} {[%emt 00:01:00]} Bf8 {[%clk 00:05:26]} {[%emt 00:04:21]} 24. Ne6
{[%clk 00:12:26]} {[%emt 00:01:25]} Be7 {[%clk 00:01:59]} {[%emt 00:03:37]} 25.
Nxg5 {[%clk 00:11:01]} {[%emt 00:01:35]} Rb7 {[%clk 00:01:33]} {[%emt
00:00:36]} 26. Qf4 {[%clk 00:04:40]} {[%emt 00:06:31]} fxg5 {[%clk 00:01:08]}
{[%emt 00:00:36]} 27. Qe5 {[%clk 00:04:49]} Qg6 {[%clk 00:00:21]} {[%emt
00:00:58]} 28. Qh8+ {[%clk 00:04:48]} {[%emt 00:00:11]} Kf7 {[%clk 00:00:29]}
{[%emt 00:00:02]} 29. Qxc8 {[%clk 00:04:56]} {[%emt 00:00:02]} Rb3 {[%clk
00:00:11]} {[%emt 00:00:28]} 30. Qd7 {[%clk 00:02:49]} {[%emt 00:02:17]} Qd6
{[%clk 00:00:20]} 31. Qf5+ {[%clk 00:02:30]} {[%emt 00:00:29]} Kg8 {[%clk
00:00:30]} 32. Re6 {[%clk 00:01:53]} {[%emt 00:00:48]} Rf3 {[%clk 00:00:12]}
{[%emt 00:00:28]} 33. Qxg5+ {[%clk 00:00:41]} {[%emt 00:01:21]} Bxg5 {[%clk
00:00:20]} {[%emt 00:00:03]} 34. Rxd6 {[%clk 00:00:51]} {[%emt 00:00:01]} Rd3
{[%clk 00:00:18]} {[%emt 00:00:11]} 35. Bc3 {[%clk 00:00:32]} {[%emt 00:00:29]}
a4 {[%clk 00:00:27]} {[%emt 00:00:01]} 36. Rd7 {[%clk 00:00:28]} {[%emt
00:00:14]} h6 {[%clk 00:00:21]} {[%emt 00:00:16]} 37. Kg2 {[%clk 00:00:31]}
{[%emt 00:00:07]} Kf8 {[%clk 00:00:15]} {[%emt 00:00:16]} 38. Rd6 {[%clk
00:00:21]} {[%emt 00:00:20]} Kf7 {[%clk 00:00:17]} {[%emt 00:00:08]} 39. h4
{[%clk 00:00:24]} {[%emt 00:00:07]} Bxh4 {[%clk 00:00:20]} {[%emt 00:00:07]} 40.
Rxh6 {[%clk 00:00:32]} {[%emt 00:00:01]} Bg5 {[%clk 00:00:29]} {[%emt
00:00:02]} 41. Rd6 {[%clk 00:00:33]} {[%emt 00:00:09]} Be7 {[%clk 00:00:34]}
{[%emt 00:00:05]} 42. Ra6 {[%clk 00:00:25]} {[%emt 00:00:18]} d4 {[%clk
00:00:43]} {[%emt 00:00:01]} 43. Be1 {[%clk 00:00:25]} {[%emt 00:00:10]} Rd1
{[%clk 00:00:49]} {[%emt 00:00:04]} 44. Bb4 {[%clk 00:00:21]} {[%emt 00:00:13]}
Bxb4 {[%clk 00:00:50]} {[%emt 00:00:10]} 45. axb4 {[%clk 00:00:31]} {[%emt
00:00:01]} d3 {[%clk 00:00:59]} 46. Rd6 {[%clk 00:00:36]} {[%emt 00:00:04]} Rd2
{[%clk 00:00:55]} {[%emt 00:00:15]} 47. Kg3 {[%clk 00:00:28]} {[%emt 00:00:18]}
Rxb2 {[%clk 00:01:03]} {[%emt 00:00:02]} 48. Rxd3 {[%clk 00:00:37]} {[%emt
00:00:01]} Rb3 {[%clk 00:01:11]} {[%emt 00:00:02]} 49. Rf3+ {[%clk 00:00:12]}
{[%emt 00:00:34]} Rxf3+ {[%clk 00:01:19]} {[%emt 00:00:02]} 50. Kxf3 {[%clk
00:00:21]} {[%emt 00:00:02]} a3 {[%clk 00:01:29]} {[%emt 00:00:01]} 0-1

[Event "FIDE U16 Olympiad_boards_1-80"]
[Site "Eindhoven, Netherlands"]
[Date "2023.08.14"]
[Round "3.38"]
[White "Hnatyshyn, Anastasiia"]
[Black "Kosta, Kelvin"]
[Result "1-0"]
[TimeControl "2700+10"]
[WhiteElo "2139"]
[BlackElo "1931"]

1. e4 {[%clk 00:45:18]} {[%emt 00:00:02]} c6 {[%clk 00:45:17]} {[%emt
00:00:03]} 2. d4 {[%clk 00:45:25]} {[%emt 00:00:03]} d5 {[%clk 00:45:19]}
{[%emt 00:00:08]} 3. e5 {[%clk 00:45:32]} {[%emt 00:00:03]} c5 {[%clk
00:45:16]} {[%emt 00:00:12]} 4. dxc5 {[%clk 00:45:40]} {[%emt 00:00:03]} e6
{[%clk 00:45:25]} {[%emt 00:00:01]} 5. a3 {[%clk 00:45:46]} {[%emt 00:00:04]}
Bxc5 {[%clk 00:45:29]} {[%emt 00:00:06]} 6. Qg4 {[%clk 00:45:51]} {[%emt
00:00:05]} Ne7 {[%clk 00:45:31]} {[%emt 00:00:08]} 7. Nf3 {[%clk 00:45:56]}
{[%emt 00:00:05]} O-O {[%clk 00:44:57]} {[%emt 00:00:43]} 8. Bd3 {[%clk
00:45:58]} {[%emt 00:00:08]} Ng6 {[%clk 00:44:47]} {[%emt 00:00:21]} 9. O-O
{[%clk 00:45:40]} {[%emt 00:00:29]} Nc6 {[%clk 00:42:29]} {[%emt 00:02:26]} 10.
Qh5 {[%clk 00:45:37]} {[%emt 00:00:14]} Nce7 {[%clk 00:40:39]} {[%emt
00:02:01]} 11. Nc3 {[%clk 00:40:42]} {[%emt 00:05:04]} f6 {[%clk 00:39:42]}
{[%emt 00:01:07]} 12. exf6 {[%clk 00:39:23]} {[%emt 00:01:29]} gxf6 {[%clk
00:39:39]} {[%emt 00:00:12]} 13. Nh4 {[%clk 00:33:26]} {[%emt 00:06:09]} f5
{[%clk 00:36:35]} {[%emt 00:03:14]} 14. Bh6 {[%clk 00:30:56]} {[%emt 00:02:39]}
Rf7 {[%clk 00:34:37]} {[%emt 00:02:08]} 15. Nf3 {[%clk 00:29:15]} {[%emt
00:01:51]} e5 {[%clk 00:31:59]} {[%emt 00:02:48]} 16. Ng5 {[%clk 00:29:04]}
{[%emt 00:00:21]} Rf6 {[%clk 00:31:39]} {[%emt 00:00:30]} 17. Nxh7 {[%clk
00:21:46]} {[%emt 00:07:29]} Kxh7 {[%clk 00:29:38]} {[%emt 00:02:11]} 18. Be3+
{[%clk 00:21:42]} {[%emt 00:00:13]} Kg7 {[%clk 00:28:27]} {[%emt 00:01:21]} 19.
Qh6+ {[%clk 00:20:33]} {[%emt 00:01:19]} Kg8 {[%clk 00:28:15]} {[%emt
00:00:22]} 20. Bxc5 {[%clk 00:19:47]} {[%emt 00:00:56]} Be6 {[%clk 00:27:40]}
{[%emt 00:00:45]} 21. f4 {[%clk 00:14:31]} {[%emt 00:05:26]} e4 {[%clk
00:22:08]} {[%emt 00:05:42]} 22. Bd4 {[%clk 00:13:21]} {[%emt 00:01:20]} Rf7
{[%clk 00:21:55]} {[%emt 00:00:23]} 23. Be2 {[%clk 00:13:09]} {[%emt 00:00:22]}
Qe8 {[%clk 00:19:04]} {[%emt 00:03:01]} 24. Nb5 {[%clk 00:11:12]} {[%emt
00:02:07]} Rh7 {[%clk 00:18:14]} {[%emt 00:01:00]} 25. Qg5 {[%clk 00:11:16]}
{[%emt 00:00:06]} Qd8 {[%clk 00:14:46]} {[%emt 00:03:37]} 26. h4 {[%clk
00:08:38]} {[%emt 00:02:49]} Kf8 {[%clk 00:11:12]} {[%emt 00:03:43]} 27. h5
{[%clk 00:08:24]} {[%emt 00:00:25]} Nh8 {[%clk 00:11:08]} {[%emt 00:00:15]} 28.
Bxh8 {[%clk 00:07:58]} {[%emt 00:00:36]} Bf7 {[%clk 00:07:54]} {[%emt
00:03:24]} 29. Bd4 {[%clk 00:06:23]} {[%emt 00:01:44]} a6 {[%clk 00:07:38]}
{[%emt 00:00:26]} 30. Nc3 {[%clk 00:05:55]} {[%emt 00:00:37]} Nc6 {[%clk
00:07:14]} {[%emt 00:00:35]} 31. Bc5+ {[%clk 00:05:22]} {[%emt 00:00:43]} Ke8
{[%clk 00:07:04]} {[%emt 00:00:20]} 32. Qxf5 {[%clk 00:05:16]} {[%emt
00:00:15]} Rg7 {[%clk 00:06:19]} {[%emt 00:00:56]} 33. h6 {[%clk 00:04:27]}
{[%emt 00:00:59]} Rg6 {[%clk 00:06:19]} {[%emt 00:00:10]} 34. Bh5 {[%clk
00:04:09]} {[%emt 00:00:28]} Rf6 {[%clk 00:04:24]} {[%emt 00:02:04]} 35. Bxf7+
{[%clk 00:03:55]} {[%emt 00:00:25]} 1-0

[Event "FIDE U16 Olympiad_boards_1-80"]
[Site "Eindhoven, Netherlands"]
[Date "2023.08.14"]
[Round "3.39"]
[White "Boci, Mateo"]
[Black "Fishchuk, Vladyslav"]
[Result "1/2-1/2"]
[TimeControl "2700+10"]
[WhiteElo "1944"]
[BlackElo "2053"]

1. e4 {[%clk 00:45:15]} {[%emt 00:00:06]} c5 {[%clk 00:45:17]} {[%emt
00:00:03]} 2. Nf3 {[%clk 00:45:21]} {[%emt 00:00:03]} Nc6 {[%clk 00:45:24]}
{[%emt 00:00:04]} 3. d4 {[%clk 00:45:26]} {[%emt 00:00:05]} cxd4 {[%clk
00:45:32]} {[%emt 00:00:01]} 4. Nxd4 {[%clk 00:45:35]} {[%emt 00:00:02]} e5
{[%clk 00:45:40]} 5. Nb5 {[%clk 00:45:43]} {[%emt 00:00:02]} d6 {[%clk
00:45:49]} 6. c4 {[%clk 00:45:52]} Be6 {[%clk 00:45:55]} {[%emt 00:00:05]} 7.
N1c3 {[%clk 00:45:40]} {[%emt 00:00:22]} a6 {[%clk 00:46:02]} {[%emt 00:00:03]}
8. Na3 {[%clk 00:45:47]} {[%emt 00:00:03]} g6 {[%clk 00:46:10]} {[%emt
00:00:01]} 9. Bd3 {[%clk 00:45:47]} {[%emt 00:00:10]} Bg7 {[%clk 00:46:08]}
{[%emt 00:00:12]} 10. O-O {[%clk 00:45:43]} {[%emt 00:00:15]} Nf6 {[%clk
00:45:21]} {[%emt 00:00:56]} 11. Nc2 {[%clk 00:45:34]} {[%emt 00:00:19]} Rc8
{[%clk 00:45:17]} {[%emt 00:00:14]} 12. Ne3 {[%clk 00:44:08]} {[%emt 00:01:37]}
O-O {[%clk 00:44:37]} {[%emt 00:00:50]} 13. Ned5 {[%clk 00:43:21]} {[%emt
00:00:57]} Bxd5 {[%clk 00:40:46]} {[%emt 00:04:01]} 14. cxd5 {[%clk 00:43:08]}
{[%emt 00:00:22]} Nd4 {[%clk 00:40:43]} {[%emt 00:00:13]} 15. Be3 {[%clk
00:42:43]} {[%emt 00:00:35]} Nd7 {[%clk 00:39:57]} {[%emt 00:00:57]} 16. Rc1
{[%clk 00:40:44]} {[%emt 00:02:08]} f5 {[%clk 00:36:46]} {[%emt 00:03:21]} 17.
exf5 {[%clk 00:39:29]} {[%emt 00:01:25]} Nxf5 {[%clk 00:36:42]} {[%emt
00:00:14]} 18. Ne4 {[%clk 00:39:12]} {[%emt 00:00:27]} Qe7 {[%clk 00:28:06]}
{[%emt 00:08:46]} 19. Qb3 {[%clk 00:37:01]} {[%emt 00:02:21]} Nxe3 {[%clk
00:26:34]} {[%emt 00:01:42]} 20. fxe3 {[%clk 00:37:02]} {[%emt 00:00:09]} Rxc1
{[%clk 00:26:03]} {[%emt 00:00:41]} 21. Rxc1 {[%clk 00:37:03]} {[%emt
00:00:09]} Bh6 {[%clk 00:25:34]} {[%emt 00:00:39]} 22. Be2 {[%clk 00:36:15]}
{[%emt 00:00:58]} Qh4 {[%clk 00:21:22]} {[%emt 00:04:22]} 23. Bf3 {[%clk
00:33:44]} {[%emt 00:02:42]} Nf6 {[%clk 00:20:11]} {[%emt 00:01:21]} 24. g3
{[%clk 00:24:09]} {[%emt 00:09:45]} Qh3 {[%clk 00:20:10]} {[%emt 00:00:10]} 25.
Nxf6+ {[%clk 00:23:56]} {[%emt 00:00:23]} Rxf6 {[%clk 00:20:12]} {[%emt
00:00:09]} 26. Bg2 {[%clk 00:24:01]} {[%emt 00:00:05]} Qd7 {[%clk 00:18:59]}
{[%emt 00:01:22]} 27. Rc3 {[%clk 00:22:33]} {[%emt 00:01:39]} Qg4 {[%clk
00:16:16]} {[%emt 00:02:53]} 28. Qc2 {[%clk 00:21:23]} {[%emt 00:01:20]} Rf8
{[%clk 00:16:09]} {[%emt 00:00:16]} 29. Qd2 {[%clk 00:20:33]} {[%emt 00:01:01]}
Bg5 {[%clk 00:13:25]} {[%emt 00:02:54]} 30. Qe1 {[%clk 00:19:05]} {[%emt
00:01:38]} Bd8 {[%clk 00:12:41]} {[%emt 00:00:54]} 31. h3 {[%clk 00:18:00]}
{[%emt 00:01:15]} Qf5 {[%clk 00:12:24]} {[%emt 00:00:27]} 32. e4 {[%clk
00:17:29]} {[%emt 00:00:41]} Qh5 {[%clk 00:09:38]} {[%emt 00:02:55]} 33. b4
{[%clk 00:15:36]} {[%emt 00:02:03]} Bb6+ {[%clk 00:09:12]} {[%emt 00:00:37]} 34.
Kh2 {[%clk 00:15:26]} {[%emt 00:00:20]} Kg7 {[%clk 00:05:39]} {[%emt 00:03:43]}
35. a4 {[%clk 00:14:35]} {[%emt 00:01:01]} a5 {[%clk 00:05:03]} {[%emt
00:00:46]} 36. Rb3 {[%clk 00:14:28]} {[%emt 00:00:17]} Bf2 {[%clk 00:04:34]}
{[%emt 00:00:39]} 37. Qc1 {[%clk 00:12:42]} {[%emt 00:01:55]} axb4 {[%clk
00:03:55]} {[%emt 00:00:49]} 38. Rxb4 {[%clk 00:12:38]} {[%emt 00:00:15]} Rf7
{[%clk 00:03:32]} {[%emt 00:00:33]} 39. Rc4 {[%clk 00:10:25]} {[%emt 00:02:23]}
Bc5 {[%clk 00:02:54]} {[%emt 00:00:47]} 40. Rc2 {[%clk 00:10:07]} {[%emt
00:00:28]} b6 {[%clk 00:02:58]} {[%emt 00:00:06]} 41. Ra2 {[%clk 00:08:24]}
{[%emt 00:01:53]} h6 {[%clk 00:01:37]} {[%emt 00:01:31]} 42. Rc2 {[%clk
00:08:07]} {[%emt 00:00:27]} g5 {[%clk 00:01:44]} {[%emt 00:00:03]} 43. Qe1
{[%clk 00:07:29]} {[%emt 00:00:48]} Qg6 {[%clk 00:01:38]} {[%emt 00:00:17]} 44.
a5 {[%clk 00:07:11]} {[%emt 00:00:27]} b5 {[%clk 00:01:31]} {[%emt 00:00:18]}
45. Bf1 {[%clk 00:05:55]} {[%emt 00:01:26]} b4 {[%clk 00:01:28]} {[%emt
00:00:12]} 46. Bb5 {[%clk 00:05:52]} {[%emt 00:00:13]} b3 {[%clk 00:00:35]}
{[%emt 00:01:03]} 47. Rg2 {[%clk 00:05:43]} {[%emt 00:00:20]} Rf3 {[%clk
00:00:31]} {[%emt 00:00:13]} 48. Qe2 {[%clk 00:04:19]} {[%emt 00:01:34]} Qf7
{[%clk 00:00:40]} {[%emt 00:00:02]} 49. Be8 {[%clk 00:04:06]} {[%emt 00:00:23]}
Qf8 {[%clk 00:00:40]} {[%emt 00:00:10]} 50. Bh5 {[%clk 00:04:00]} {[%emt
00:00:15]} Rf2 {[%clk 00:00:37]} {[%emt 00:00:14]} 51. Rxf2 {[%clk 00:04:03]}
{[%emt 00:00:07]} Qxf2+ {[%clk 00:00:45]} {[%emt 00:00:01]} 52. Qxf2 {[%clk
00:04:08]} {[%emt 00:00:06]} Bxf2 {[%clk 00:00:53]} {[%emt 00:00:02]} 53. Bd1
{[%clk 00:04:16]} {[%emt 00:00:02]} b2 {[%clk 00:01:01]} {[%emt 00:00:02]} 54.
Bc2 {[%clk 00:04:25]} {[%emt 00:00:01]} Kf7 {[%clk 00:01:08]} {[%emt 00:00:03]}
55. Kg2 {[%clk 00:04:29]} {[%emt 00:00:06]} Bd4 {[%clk 00:01:12]} {[%emt
00:00:06]} 56. Kf3 {[%clk 00:04:14]} {[%emt 00:00:25]} h5 {[%clk 00:01:21]}
{[%emt 00:00:01]} 57. Ke2 {[%clk 00:04:01]} {[%emt 00:00:23]} Ke7 {[%clk
00:01:22]} {[%emt 00:00:09]} 58. Kd3 {[%clk 00:04:01]} {[%emt 00:00:10]} Kd7
{[%clk 00:01:23]} {[%emt 00:00:09]} 59. Ba4+ {[%clk 00:03:57]} {[%emt
00:00:13]} Kc7 {[%clk 00:01:30]} {[%emt 00:00:03]} 60. Kc2 {[%clk 00:04:01]}
{[%emt 00:00:06]} Kb7 {[%clk 00:01:30]} {[%emt 00:00:10]} 61. Bb5 {[%clk
00:03:56]} {[%emt 00:00:15]} Ka7 {[%clk 00:01:38]} {[%emt 00:00:03]} 62. h4
{[%clk 00:03:41]} {[%emt 00:00:25]} gxh4 {[%clk 00:01:18]} {[%emt 00:00:30]} 63.
gxh4 {[%clk 00:03:49]} {[%emt 00:00:01]} Kb7 {[%clk 00:01:20]} {[%emt
00:00:08]} 64. Be2 {[%clk 00:03:49]} {[%emt 00:00:11]} Bf2 {[%clk 00:00:51]}
{[%emt 00:00:38]} 65. Kxb2 {[%clk 00:03:53]} {[%emt 00:00:06]} Bxh4 {[%clk
00:00:57]} {[%emt 00:00:04]} 66. Kb3 {[%clk 00:03:58]} {[%emt 00:00:06]} Be1
{[%clk 00:01:00]} {[%emt 00:00:07]} 67. a6+ {[%clk 00:04:00]} {[%emt 00:00:08]}
Kb6 {[%clk 00:01:07]} {[%emt 00:00:03]} 1/2-1/2